Cogmind - Beta 10.2 @@@ ROGUE MODE // 2021.03.18 @ 20:14:08 Player: goast115 Result: Destroyed by Y-45 Defender with Heavy Assault Rifle Performance ------------- Evolutions (1) 500 Regions Visited (4) 800 Robots Destroyed (30) 150 Value Destroyed (748) 748 Prototype IDs (0) 0 Alien Tech Used (0) 0 Bonus (85) 85 TOTAL SCORE: 2283 Bonus ------- High Alert Combat Kills 28 Follower Combat Kills 57 Cogmind --------- Core Integrity 0/400 Matter 232/300 Energy 98/100 System Corruption 2% Temperature Cool (10) Movement Walking (120) Location -9/Storage Parts ------- > --- POWER (1) -------- (None) > --- PROPULSION (3) --- Aluminum Leg > --- UTILITY (3) ------ Small Storage Unit Improved Signal Interpreter Armor Integrity Analyzer > --- WEAPON (2) ------- (None) > --- INVENTORY (6) ---- Improved Ion Engine Tractor Beam Small Laser Peak State ------------ > --- POWER ------------ Improved Ion Engine > --- PROPULSION ------- Wheel Wheel > --- UTILITY ---------- Small Storage Unit Improved Signal Interpreter Armor Integrity Analyzer > --- WEAPON ----------- Assault Rifle Heavy Assault Rifle > --- INVENTORY -------- Improved Ion Engine Improved Ion Engine Improved Ion Engine Improved Ion Engine Tractor Beam Spread Laser [Rating: 13] Favorites ----------- Power Ion Engine Engine Ion Engine Propulsion Aluminum Leg Leg Aluminum Leg Wheel Wheel Utility Small Storage Unit Device Tractor Beam Storage Small Storage Unit Processor Armor Integrity Analyzer Weapon Assault Rifle Energy Gun Spread Laser Ballistic Gun Assault Rifle Launcher Rocket Launcher Build | -11 -10 -10 -9 -9 ------- Run | Scr Mat Min Mat Sto Slots Evolved 2 | . . . 2 . Power . | . . . . . Propulsion 1 | . . . 1 . Utility 1 | . . . 1 . Weapon . | . . . . . Parts Attached 27 | 6 2 . 9 10 Power 5 | 1 . . 2 2 Engine 5 | 1 . . 2 2 Core . | . . . . . Reactor . | . . . . . Propulsion 6 | 2 . . 2 2 Treads . | . . . . . Leg 4 | 2 . . . 2 Wheel 2 | . . . 2 . Hover . | . . . . . Flight . | . . . . . Utility 6 | 1 2 . 2 1 Device 2 | . 1 . 1 . Storage 2 | 1 . . . 1 Processor 2 | . 1 . 1 . Hackware . | . . . . . Protection . | . . . . . Artifact . | . . . . . Weapon 10 | 2 . . 3 5 Energy Gun 1 | . . . . 1 Energy Cannon . | . . . . . Ballistic Gun 5 | 2 . . 3 . Ballistic Cannon . | . . . . . Launcher 4 | . . . . 4 Special Weapon . | . . . . . Impact Weapon . | . . . . . Slashing Weapon . | . . . . . Piercing Weapon . | . . . . . Special Melee Weapon . | . . . . . Unidentified Prototypes . | . . . . . Parts Lost 15 | . . 5 5 5 Power 3 | . . 1 1 1 Propulsion 5 | . . 2 2 1 Utility . | . . . . . Weapon 7 | . . 2 2 3 Highest Loss Streak 5 | . . 5 5 4 Average Slot Usage (%) 84 | . 95 90 79 70 Engine 11 | . 14 11 8 10 Leg 15 | . 28 24 . 14 Wheel 5 | . . . 18 . Device 2 | . 6 . . . Storage 11 | . 14 14 11 8 Processor 14 | . 3 14 21 22 Ballistic Gun 18 | . 28 25 19 . Launcher 3 | . . . . 13 Naked Turns . | . . . . . Heaviest Build 19 | 13 14 13 16 19 Greatest Support 20 | 20 20 20 20 20 Greatest Overweight (x) 4 | 3 . 1 1 4 Average Overweight (x) . | . . . . . Largest Inventory Capacity 6 | 6 6 6 6 6 Average Capacity 5 | 5 6 6 6 5 Most Carried 6 | 4 6 6 6 6 Average Carried 4 | 2 4 5 5 3 Final Capacity 6 | 6 6 6 6 6 Final Carried 6 | 2 5 6 6 3 Class Distribution -------------------- 100% | Mutant Dominant Class ---------------- Mutant | -10/Materials Mutant | -10/Mines Mutant | -9/Materials Mutant | -9/Storage Resources | -11 -10 -10 -9 -9 ----------- Run | Scr Mat Min Mat Sto Matter Collected 812 | 257 79 46 200 230 Remotely 76 | . 76 . . . Salvage Created 697 | . 79 51 286 281 Parts 51 | . 8 6 20 17 Haulers Intercepted 1 | . . . . 1 Recyclers Shooed 1 | . . . 1 . Parts Field Recycled . | . . . . . Retrieved Matter . | . . . . . Parts Self-Destructed . | . . . . . Prevented . | . . . . . Kills | -11 -10 -10 -9 -9 ------- Run | Scr Mat Min Mat Sto Combat Hostiles Destroyed 26 | . 5 3 8 10 Guns 18 | . 5 3 8 2 AOE 8 | . . . . 8 Classes Destroyed 7 | . 1 . 2 4 Hauler 1 | . . . . 1 Mechanic 3 | . . . . 3 Swarmer 13 | . 5 3 3 2 Grunt 7 | . . . 2 5 Brawler 1 | . . . . 1 Duelist 1 | . . . . 1 Sentry 4 | . . . 3 1 Best Kill Streak 7 | . 5 3 4 7 Combat Bots Only 7 | . 5 3 4 7 Max Kills in Single Turn 4 | . 1 1 2 4 Gunslinging 1 | . . . 1 . Exploded 4 | . . . . 4 Melee . | . . . . . Uniques/NPCs Destroyed . | . . . . . Combat | -11 -10 -10 -9 -9 -------- Run | Scr Mat Min Mat Sto Damage Taken 2053 | . 274 396 797 586 Core 588 | . 61 125 256 146 Absorbed by Shields . | . . . . . Core Remaining (%) 62 | 100 . 25 . . Volleys Fired 69 | . 11 6 38 14 Largest 2 | . 2 2 2 2 Hottest 66 | . 40 40 43 66 Shots Fired 127 | . 22 12 74 19 Gun 113 | . 22 12 74 5 Cannon . | . . . . . Launcher 14 | . . . . 14 Special . | . . . . . Kinetic 108 | . 22 12 74 . Thermal 5 | . . . . 5 Explosive 14 | . . . . 14 Electromagnetic . | . . . . . Robot Hit Streak 10 | . 5 1 10 4 Robot Miss Streak 6 | . 3 3 4 6 Penetration Max . | . . . . . Secondary Targets 3 | . 1 1 1 . Max Gunslinging Chain 1 | . 1 1 1 . Shots Hit Robots 66 | . 12 4 41 9 Core Hits 49 | . 5 3 13 28 Critical Hits . | . . . . . Critical Kills . | . . . . . Critical Parts Destroyed . | . . . . . Melee Attacks . | . . . . . Impact . | . . . . . Slashing . | . . . . . Piercing . | . . . . . Sneak Attacks . | . . . . . Combat Hostiles . | . . . . . Follow-up Attacks . | . . . . . Damage Inflicted 1576 | . 126 48 503 899 Guns 686 | . 126 48 491 21 Cannons . | . . . . . Explosions 878 | . . . . 878 Melee . | . . . . . Ramming 12 | . . . 12 . Kinetic 665 | . 126 48 491 . Thermal 21 | . . . . 21 Explosive 878 | . . . . 878 Electromagnetic . | . . . . . Impact . | . . . . . Slashing . | . . . . . Piercing . | . . . . . Highest Corruption 2 | . . . . 2 Average Corruption 2 | . . . . 2 Corruption Purged . | . . . . . Effects 1 | . . . . 1 Data Loss (minor) 1 | . . . . 1 Overload Shots . | . . . . . Overflow Damage 48 | . . . . 48 Projectiles . | . . . . . Explosions 48 | . . . . 48 Melee . | . . . . . Knockbacks . | . . . . . Impact . | . . . . . Kinetic . | . . . . . Secondary . | . . . . . Self-Inflicted Damage 109 | . . . 6 103 Shots 4 | . . . . 4 Rammed 1 | . . . 1 . Targets Rammed 1 | . . . 1 . Kicked . | . . . . . Crushed . | . . . . . Highest Temperature 100 | . . . 7 100 Average Temperature 24 | . . . 3 31 Received Heat Transfer 438 | . . . 300 138 Siege Activations . | . . . . . Robots Corrupted . | . . . . . Combat Hostiles . | . . . . . Parts Fried . | . . . . . Impact Corruptions . | . . . . . Robots Melted . | . . . . . Combat Hostiles . | . . . . . Parts Melted . | . . . . . Heat Transferred 25 | . . . . 25 Parts Sabotaged . | . . . . . Parts Stolen . | . . . . . Parts Stripped . | . . . . . Power Chain Reactions . | . . . . . Missiles Intercepted . | . . . . . Alert | -11 -10 -10 -9 -9 ------- Run | Scr Mat Min Mat Sto Peak Influence 479 | . 170 136 347 479 Initial 146 | . . 66 33 146 Average 151 | . 73 124 157 316 Maximum Alert Level 2 | . . . 1 2 Low Security (%) 70 | 100 100 100 62 17 Level 1 19 | . . . 37 42 Level 2 9 | . . . . 40 Level 3 . | . . . . . Level 4 . | . . . . . Level 5 . | . . . . . High Security . | . . . . . Max Security . | . . . . . Squads Dispatched 7 | . 1 . 3 3 Investigation 3 | . 1 . 2 . Extermination . | . . . . . Reinforcement 2 | . . . 1 1 Assault 2 | . . . . 2 Garrison . | . . . . . Intercept . | . . . . . Construction Impeded . | . . . . . Haulers Reinforced . | . . . . . Stealth | -11 -10 -10 -9 -9 --------- Run | Scr Mat Min Mat Sto Distress Signals 2 | . . . . 2 Communications Jammed . | . . . . . Distress Signals . | . . . . . Times Spotted 57 | . 8 4 20 25 Peak Tracking Total 9 | . 7 3 8 9 Tactical Retreats 2 | . 1 . 1 . Traps | -11 -10 -10 -9 -9 ------- Run | Scr Mat Min Mat Sto Traps Triggered 2 | . 1 . . 1 Indirectly . | . . . . . Trap Hack Attempts . | . . . . . Triggered . | . . . . . Disarmed . | . . . . . Reprogrammed . | . . . . . Reused . | . . . . . Traps Extracted . | . . . . . Installed . | . . . . . Triggered . | . . . . . Machines | -11 -10 -10 -9 -9 ---------- Run | Scr Mat Min Mat Sto Machines Disabled 5 | . . . 2 3 Max in Single Turn 1 | . . . 1 1 Machines Sabotaged . | . . . . . Garrisons Compromised . | . . . . . Overloaded Fab Kills . | . . . . . Fab Network Shutdowns . | . . . . . Hacking | -11 -10 -10 -9 -9 --------- Run | Scr Mat Min Mat Sto Machines Accessed 4 | . 1 . 2 1 Terminals 2 | . . . 2 . Fabricators . | . . . . . Repair Stations 1 | . . . . 1 Recycling Units 1 | . 1 . . . Scanalyzers . | . . . . . Garrison Access . | . . . . . Total Hacks 12 | . 3 . 7 2 Successful 10 | . 2 . 6 2 Failed 2 | . 1 . 1 . Catastrophic . | . . . . . Database Lockouts . | . . . . . Manual . | . . . . . Terminals 7 | . . . 7 . Fabricators . | . . . . . Repair Stations 2 | . . . . 2 Recycling Units 3 | . 3 . . . Scanalyzers . | . . . . . Garrison Access . | . . . . . Terminal Hacks 6 | . . . 6 . Record 1 | . . . 1 . Emergency Access Points 1 | . . . 1 . Alert Level 2 | . . . 2 . Locate Traps 1 | . . . 1 . Zone Layout 1 | . . . 1 . Fabricator Hacks . | . . . . . Repair Station Hacks 2 | . . . . 2 Scan Component 1 | . . . . 1 Repair 1 | . . . . 1 Recycling Unit Hacks 2 | . 2 . . . Report Inventory 1 | . 1 . . . Retrieve Components 1 | . 1 . . . Scanalyzer . | . . . . . Garrison Access Hacks . | . . . . . Unauthorized Hacks . | . . . . . Terminals . | . . . . . Fabricators . | . . . . . Repair Stations . | . . . . . Recycling Units . | . . . . . Scanalyzers . | . . . . . Garrison Access . | . . . . . Data Cores Recovered . | . . . . . Used . | . . . . . Hacking Detections 3 | . 1 . 2 . Full Trace Events 2 | . . . 2 . Feedback Events . | . . . . . Feedback Blocked . | . . . . . Robot Schematics Acquired . | . . . . . Robots Built . | . . . . . Matter . | . . . . . Time . | . . . . . Total Robot Build Rating . | . . . . . Part Schematics Acquired . | . . . . . Parts Built . | . . . . . Matter . | . . . . . Time . | . . . . . Total Part Build Rating . | . . . . . Parts Repaired 1 | . . . . 1 Time 26 | . . . . 26 Parts Recycled . | . . . . . Recycled Matter . | . . . . . Retrieved Matter . | . . . . . Retrieved Components 6 | . 6 . . . Parts Scanalyzed . | . . . . . Part Schematics Acquired . | . . . . . Parts Damaged . | . . . . . Bothacking | -11 -10 -10 -9 -9 ------------ Run | Scr Mat Min Mat Sto Used RIF Installer . | . . . . . Robots Hacked . | . . . . . Non-combat . | . . . . . Combat . | . . . . . Robot Hacks Applied . | . . . . . Relay Couplers Released . | . . . . . Robots Rewired . | . . . . . Allies Hacked . | . . . . . Hacks Repelled . | . . . . . Allies | -11 -10 -10 -9 -9 -------- Run | Scr Mat Min Mat Sto Total Allies 2 | . . . . 2 Largest Group 2 | . . . . 2 Highest-Rated Group 62 | . . . . 62 Highest-Rated Ally 31 | . . . . 31 Total Orders . | . . . . . Ally Attacks 11 | . . . . 11 Total Damage 146 | . . . . 146 Kills 3 | . . . . 3 Allies Corrupted . | . . . . . Allies Melted . | . . . . . Intel | -11 -10 -10 -9 -9 ------- Run | Scr Mat Min Mat Sto Robot Analysis Total . | . . . . . Derelict Logs Recovered 1 | . . 1 . . Drone Launches . | . . . . . Drone Recoveries . | . . . . . Exploration | -11 -10 -10 -9 -9 ------------- Run | Scr Mat Min Mat Sto Turns Passed 1107 | 79 369 106 301 252 Spaces Moved 695 | 57 257 63 188 130 Core 90 | 19 . 8 33 30 Treads . | . . . . . Legs 450 | 38 257 55 . 100 Wheels 155 | . . . 155 . Hover . | . . . . . Flight . | . . . . . Fastest Speed 50 | 50 120 100 80 120 Average Speed 113 | 115 120 118 83 143 Slowest Speed 250 | 200 120 150 100 250 Overloaded Moves . | . . . . . Propulsion Burnouts . | . . . . . Robots Hopped . | . . . . . Cave-ins Triggered . | . . . . . Exploration Rate (%) 18 | 4 29 13 25 20 Regions Visited 4 Branch Regions 2 Pre-discovered Areas 1 | . . 1 . . Known Exits Taken 1 | . . . 1 . Unknown Exits Taken 3 | 1 1 1 . . Scrap Searched 1 | . . 1 . . Spaces Dug . | . . . . . Terrain Destroyed 97 | . . . . 97 Melee . | . . . . . Projectile . | . . . . . AOE 97 | . . . . 97 Terrain Rammed . | . . . . . Walls Destroyed . | . . . . . Machines Disabled . | . . . . . Actions | -11 -10 -10 -9 -9 --------- Run | Scr Mat Min Mat Sto Total 888 | 70 297 82 260 179 Wait 58 | . 17 13 14 14 Move 691 | 56 256 62 187 130 Hop . | . . . . . Pick Up 30 | 8 7 1 8 6 Fast Attach . | . . . . . Attach 27 | 6 2 . 9 10 Detach 5 | . 1 . 1 3 Swap . | . . . . . Drop 7 | . 3 . 2 2 Fire 69 | . 11 6 38 14 Melee . | . . . . . Ram 1 | . . . 1 . Kick . | . . . . . Crush . | . . . . . Escape Stasis . | . . . . . Rewire . | . . . . . Trap . | . . . . . Miscellaneous . | . . . . . Route ------- -11/Scrapyard -10/Materials -10/Mines -9/Materials -9/Storage History --------- Turn | Location | Event 31 | -11/Scrapyard | Discovered new exit (range 16) 80 | -11/Scrapyard | Entered Materials 311 | -10/Materials | Build established: Mutant 431 | -10/Materials | Discovered new exit (range 14) 449 | -10/Materials | Entered Mines 499 | -10/Mines | Learned location of Zion (-7) 545 | -10/Mines | Discovered new exit (range 10) 546 | -10/Mines | Core integrity fell below 50% 555 | -10/Mines | Entered Materials 555 | -9/Materials | Evolved 2 slots: Propulsion x1, Utility x1 578 | -9/Materials | Lost 5 parts (1p2n2w) 841 | -9/Materials | Discovered new exit (range 15) 846 | -9/Materials | Core integrity fell below 50% 855 | -9/Materials | Identified exit to Storage 856 | -9/Materials | Entered Storage 865 | -9/Storage | Lost 5 parts (1p2n2w) 905 | -9/Storage | Met a pair of Derelict thieves 993 | -9/Storage | Repaired Sml. Storage Unit 1002 | -9/Storage | Core integrity fell below 20% 1030 | -9/Storage | Destroyed 7 combat bots 1108 | -9/Storage | Destroyed by Y-45 Defender with Heavy Assault Rifle Last Messages --------------- [Achievement: Loot Pinata] 01055_ M-13 Machinist destroyed. 01057_ K-01 Serf collects debris. 01058_ U-05 Engineer lays Concrete. 01060_ Triggered Shock Trap. 01060_ The floor emits a surge of raw power. 01060_ System corrupted (+2). 01061_ R-06 Scavenger collects Spread Laser. 01062_ K-01 Serf collects debris. 01065_ R-06 Scavenger collects Spread Laser. 01091_ Storage Shell breached. 01091_ Rocket Launcher destroyed. 01091_ Destroyed Rocket Launcher. 01098_ System corrupted: Component data lost. 01098_ Imp. Ion Engine destroyed. 01099_ Y-45 Defender destroyed. 01101_ Rocket Launcher destroyed. 01104_ The unstable cave ceiling collapses. 01104_ Aluminum Leg destroyed. 01106_ The unstable cave ceiling collapses. Map ----- +----------------------------------------------------+ | ????????## ##????????????? | | ????????# #????????????? | | ????????# #????????????? | | ????????# # #????????????? | | ????????# # ######????????????? | | ????????# # # # ] ]#????????????? | | ????????# # # T# ] #????????????? | | ????????##""" # " #????????????? | | ?????????#"Y % / ]#????????????? | | ?????????#""" % # " ] #????????????? | | ?????????#### %# #! ]#????????????? | | ????????????# #########????????????? | | ????""??????# #????????????????????? | | ?? G"?????# #????????????????????? | | ?* "" ????# #????????????????????? | | ? #####" #?####???????????????? | | ?# # #%" ## #???????????????? | | *% % # #???????????????? | | ! = + #???????????????? | | !! [%[ # #???????????????? | | = ##Tg ##??????????????? | | !% ## # # #?????????????? | | ###### # # ##???????????? | | ??#?????????#^ ###?????????? | | ????????????# #?????????? | | ????????????# % @##?????????? | | ????????????# Y ]" #??????????? | | ????????????# # ] [" #??????????? | | ????????????# "[ "[" #??????????? | | ????????????# # "="""" #??????????? | | ????????????# # """ #??????????? | | ????????????+ # #??????????? | | ????????????# ###########??????????? | | ????????????# #????????????????????? | | ????????????# #????????????????????? | | ????????????# #????????????????????? | | ????????????# ?????????????????????? | | ????????????# ?????????????????????? | | ????????????# ?????????????????????? | | ????????????# ?????????????????????? | | ????????????# ?????????????????????? | | ???????????? ?????????????????????? | | ????????????? ?????????????????????? | | ?????????????????????????????????????? | | ?????????????????????????????????????? | | ?????????????????????????????????????? | | ?????????????????????????????????????? | | ?????????????????????????????????????? | | ?????????????????????????????????????? | | ?????????????????????????????????????? | +----------------------------------------------------+ Best States ------------- Heat Dissipation 28 Energy Generation 12 Energy Capacity 265 Matter Stores 300 Matter Capacity 300 Sight Range 16 Terrain Scan Density 10 Evasion (%) 50 Armor Integrity Analysis 33 Item Schematics ----------------- None Robot Schematics ------------------ None Fabricated ------------ Nothing Alien Tech Used ----------------- None Achievements -------------- Loot Pinata Part-time Mechanic Challenges ------------ None Game ------ Seed BiocellBladeRefractor Manual? 0 Play Time 00:22:04 Cumulative 4.0 hours Start 2021.03.18 @ 16:33:04 End 2021.03.18 @ 20:14:08 Sessions 3 Manual Loads 0 Difficulty Rogue Special Mode None Game No. 9 Rogue 9 Adventurer 0 Explorer 0 Win Type - Total 0 Types 0/0/0/0/0/0/0/0/0 Lore% 3 Gallery% 7 Achievement% 7 Wizard Run 0 Options --------- ASCII 0 Keyboard 1 Movement Numpad Keybinds 0 Fullscreen 2 Font 18/SmallcapsGlow Map View 76x50 Tactical HUD 1 Map Filters NONE Filters NONE Steam 1 RUN: 347cf9b9-516e-4180-939a-3a782f1d99e5